[Event "French Top 16-A 2024"]
[Site "Chartres"]
[Date "2024.06.04"]
[Round "6.13"]
[White "Van Wely, Loek"]
[Black "Wirig, Anthony"]
[Result "1/2-1/2"]
[ECO "E14"]
[WhiteElo "2608"]
[BlackElo "2453"]
[Annotator "TA"]
[PlyCount "81"]
[EventDate "2024.06.01"]
[EventType "team-tourn"]
[EventCountry "FRA"]
[SourceTitle "playchess.com"]
[Source "ChessBase"]
[SourceQuality "1"]
[TimeControl "40/5400+30:1800+30"]

{[%evp 14,81,26,28,18,10,18,14,17,14,16,0,0,0,9,0,0,-20,-16,-25,-18,-18,-7,0,-4,-22,-15,-20,-22,-89,-16,-8,0,0,17,30,20,18,37,18,42,44,48,0,0,0,0,0,0,-28,0,0,0,0,0,-36,0,0,0,-90,-17,-10,-14,-116,0,-9,0,-116,0,-14]} 1. d4 {[%emt 0:00:24]} Nf6 {[%emt 0:00:22]} 2. c4 {[%emt 0:00:09]} e6 {[%emt 0:00:10]} 3. Nf3 {[%emt 0:00:32]} Bb4+ {[%emt 0:01:18]} 4. Nbd2 {[%emt 0:01:39]} b6 {[%emt 0:02:31]} 5. a3 {[%emt 0:04:22]} Bxd2+ {[%emt 0:00:22]} 6. Qxd2 {[%emt 0:00:06]} Bb7 {[%emt 0:00:10]} 7. e3 {[%emt 0:00:07]} O-O {[%emt 0:02:34]} 8. Be2 {[%emt 0:00:54]} d5 {[%emt 0:01:58]} 9. b3 {[%emt 0:01:13]} c5 {[%emt 0:02:05]} 10. Bb2 {[%emt 0:04:47]} Ne4 {[%emt 0:06:32]} 11. Qc2 {[%emt 0:10:21]} cxd4 {[%emt 0:01:39]} 12. Nxd4 {[%emt 0:02:53]} Nd7 {[%emt 0:05:26]} 13. O-O {[%emt 0:04:25]} Rc8 {[%emt 0:15:22]} 14. f3 {[%emt 0:18:25]} Nd6 {[%emt 0:11:14]} 15. Rfd1 {[%emt 0:05:26]} Qg5 {[%emt 0:08:38]} 16. f4 {[%emt 0:04:31]} Qh6 {[%emt 0:05:06]} 17. a4 {[%emt 0:04:10]} dxc4 {[%emt 0:07:45]} 18. bxc4 {[%emt 0:01:42]} Nc5 {[%emt 0:06:22]} 19. a5 {[%emt 0:05:52]} Be4 {[%emt 0:03:05]} 20. Qc3 {[%emt 0:01:56]} Qg6 {[%emt 0:01:58][%csl Ge4][%cal Rg6g2]} 21. g4 {[%emt 0:07:07] [#]} (21. Bf1 $11) 21... e5 {[%emt 0:05:03]} 22. fxe5 $11 {[%emt 0:01:58]} Nf5 {[%emt 0:00:34] Excellent horsemanship.} (22... Ndb7 {simplifies} 23. axb6 axb6 24. Rf1 Rfe8) 23. Rf1 {[%emt 0:06:06]} Nh4 {[%emt 0:02:31]} 24. Qe1 {[%emt 0:01:51]} Qg5 {[%emt 0:00:49][%csl LRe3,LRe5]} 25. Qg3 {[%emt 0:00:21]} Bd3 {[%emt 0:04:47]} 26. axb6 {[%emt 0:02:59]} (26. Bxd3 $5 Nxd3 27. axb6 axb6 (27... Nxb2 28. b7 $16) 28. Bc3 Rxc4 29. e6 $11) 26... axb6 {[%emt 0:00:21]} 27. Bxd3 {[%emt 0:04:53]} Nxd3 {[%emt 0:00:05]} 28. Ba3 {[%emt 0:00:11]} (28. Bc3 $1 $14) 28... Rfe8 {[%emt 0:00:44]} 29. Nf5 {[%emt 0:00:48]} Nxf5 {[%emt 0:02:57]} 30. Rxf5 {[%emt 0:00:03]} Qg6 $36 {[%emt 0:00:08][%cal Oc8a8][%mdl 2048] Black has the initiative.} 31. e4 {[%emt 0:02:51]} (31. Raf1 $5) 31... Nc5 {[%emt 0:00:51]} 32. Bxc5 {[%emt 0:00:45]} Rxc5 {[%emt 0:00:27]} 33. Ra7 {[%emt 0:00:40]} Rf8 {[%emt 0:01:31]} 34. Rd7 {[%emt 0:03:03]} Qc6 {[%emt 0:01:30]} (34... Rxc4 35. Rd6 f6 (35... Rc1+ 36. Kg2 $16) 36. exf6 (36. Rxb6 Rxe4 37. exf6 Rxg4 $17) 36... gxf6 37. Qf3 $14 (37. Rxb6 Rxe4 38. h3 Qg7 $11)) (34... Qe6 $5 35. Rd6 Qxc4 $15) 35. Qd3 {[%emt 0:00:00][%cal Od7f7] [#] Rdxf7! would now be deadly.} Rxc4 {[%emt 0:00:10]} 36. Rd8 {[%emt 0:00:00]} (36. Qd5 $11 Rc1+ 37. Kg2 Qxd5 38. exd5) 36... Rc1+ {[%emt 0:00:36]} ({Weaker is} 36... Qxe4 37. Rxf8+ Kxf8 38. Qd8#) (36... g6 $17 37. Rxf8+ Kxf8 38. Qd8+ Kg7 39. Qf6+ Qxf6 40. exf6+ Kh6 41. g5+ Kh5) 37. Kg2 {[%emt 0:00:24]} Rc2+ {[%emt 0:00:31]} 38. Kf1 {[%emt 0:00:29]} (38. Rf2 $11 Rxf2+ 39. Kxf2) 38... Rc1+ {[%emt 0:00:18]} (38... g6 39. Rf3 $15) (38... Rxh2 $17 {And now ...Qc1+ would win.} 39. Rxf8+ Kxf8 40. Qd8+ Qe8 41. Qxb6 Rh1+ 42. Kf2 (42. Kg2 Rh6 $17) 42... Qc8) 39. Kg2 {[%emt 0:00:27]} Rc2+ {[%emt 0:00:50]} ({Black should try} 39... h6 $11) 40. Kf1 $17 {[%emt 0:00:29]} Rc1+ {[%emt 0:00:36]} ({Don't take} 40... g6 41. Rf3 $15) (40... Rxh2 $17 {...Qc1+ is the strong threat.} 41. Rxf8+ Kxf8 42. Qd8+ Qe8 43. Qxb6 Kg8) 41. Kg2 {[%emt 0:01:41] Weighted Error Value: White=0.18 (very precise) /Black=0.18 (very precise) .  Mistake:       	White=4     	Black=5      Inaccurate:     	White=2     	Black=2      OK:         	White=14    	Black=10     Best:        	White=3     	Black=1} 1/2-1/2

[Event "French Top 16-A 2024"]
[Site "Chartres"]
[Date "2024.06.04"]
[Round "6.13"]
[White "Pelletier, Yannick"]
[Black "Dumas, Charles"]
[Result "1-0"]
[ECO "E11"]
[WhiteElo "2515"]
[BlackElo "2256"]
[Annotator "RC"]
[PlyCount "61"]
[EventDate "2024.06.01"]
[EventType "team-tourn"]
[EventCountry "FRA"]
[SourceTitle "playchess.com"]
[Source "ChessBase"]
[SourceQuality "1"]
[TimeControl "40/5400+30:1800+30"]

1. d4 {[%emt 0:00:47]} Nf6 {[%emt 0:00:07]} 2. c4 {[%emt 0:00:09]} e6 {[%emt 0:00:05]} 3. Nf3 {[%emt 0:00:13]} Bb4+ {[%emt 0:00:12]} 4. Bd2 {[%emt 0:00:40]} Bxd2+ {[%emt 0:00:46]} 5. Qxd2 {[%emt 0:00:40]} d5 {[%emt 0:00:35]} 6. Qc2 {[%emt 0:02:46]} O-O {[%emt 0:00:58]} 7. Nbd2 {[%emt 0:00:50]} Qe7 {[%emt 0:12:22]} 8. Rc1 {[%emt 0:08:39]} c6 {[%emt 0:05:07]} 9. e3 {[%emt 0:02:26]} Nbd7 {[%emt 0:06:53]} 10. Bd3 {[%emt 0:01:14]} dxc4 {[%emt 0:11:50]} 11. Nxc4 {[%emt 0:11:13]} c5 {[%emt 0:03:05]} 12. e4 {[%emt 0:14:42]} h6 {[%emt 0:08:52]} 13. e5 {[%emt 0:09:27]} Nd5 {[%emt 0:00:35]} 14. Bh7+ {[%emt 0:00:06]} Kh8 {[%emt 0:00:05]} 15. Be4 {[%emt 0:00:09]} cxd4 {[%emt 0:12:08]} 16. O-O {[%emt 0:20:12]} b6 {[%emt 0:03:48]} 17. Qd2 {[%emt 0:03:37]} Ba6 {[%emt 0:07:46]} 18. Bb1 {[%emt 0:05:11]} Rfc8 {[%emt 0:02:57]} 19. Nd6 {[%emt 0:00:14]} Rc5 {[%emt 0:01:48]} 20. Rfe1 {[%emt 0:05:09]} Rd8 {[%emt 0:06:21]} 21. Qxd4 {[%emt 0:04:48]} Rxc1 {[%emt 0:03:15]} 22. Rxc1 {[%emt 0:00:02]} Nxe5 {[%emt 0:00:35]} 23. Nxe5 {[%emt 0:00:05]} Rxd6 {[%emt 0:00:04]} 24. Bg6 {[%emt 0:00:19]} f6 {[%emt 0:10:10]} 25. Nf7+ {[%emt 0:00:41]} Kg8 {[%emt 0:00:03]} 26. Nxd6 {[%emt 0:01:40]} Qxd6 {[%emt 0:00:02]} 27. Qa4 {[%emt 0:01:47]} b5 {[%emt 0:00:13]} 28. Qd4 {[%emt 0:01:27]} Qd7 {[%emt 0:01:23]} 29. Be4 {[%emt 0:01:15]} Bb7 {[%emt 0:00:27]} 30. Qxa7 {[%emt 0:01:07]} Nf4 {[%emt 0:00:24]} 31. Qb8+ {[%emt 0:00:12]} 1-0

[Event "French Top 16-A 2024"]
[Site "Chartres"]
[Date "2024.06.04"]
[Round "6.14"]
[White "Sochacki, Christophe"]
[Black "Delorme, Axel"]
[Result "1-0"]
[ECO "D35"]
[WhiteElo "2451"]
[BlackElo "2489"]
[Annotator "TA"]
[PlyCount "134"]
[EventDate "2024.06.01"]
[EventType "team-tourn"]
[EventCountry "FRA"]
[SourceTitle "playchess.com"]
[Source "ChessBase"]
[SourceQuality "1"]
[TimeControl "40/5400+30:1800+30"]

{[%evp 69,134,292,450,435,396,410,523,500,496,440,445,322,314,334,308,336,370,380,370,376,361,313,479,256,256,256,340,352,352,336,357,351,412,381,432,417,435,422,439,449,449,372,527,525,591,547,632,619,640,616,648,649,666,667,666,652,667,658,878,858,29976,29977,29974,29972,29980,29981,29993]} 1. d4 {[%emt 0:00:08]} d5 {[%emt 0:00:08]} 2. c4 {[%emt 0:00:06]} e6 {[%emt 0:00:05]} 3. Nc3 {[%emt 0:00:03]} Nf6 {[%emt 0:00:04]} 4. cxd5 {[%emt 0:00:04]} exd5 {[%emt 0:00:05]} 5. Bg5 {[%emt 0:00:06]} c6 {[%emt 0:02:20]} 6. e3 {[%emt 0:00:10]} h6 {[%emt 0:00:07]} 7. Bh4 {[%emt 0:00:08]} Be6 {[%emt 0:00:08] D35: Queen's Gambit Declined: Exchange Variation.} 8. Bd3 {[%emt 0:08:10]} Nbd7 {[%emt 0:01:26]} 9. Nf3 {[%emt 0:15:59]} g5 {[%emt 0:01:14]} 10. Bg3 {[%emt 0:00:35]} Nh5 {[%emt 0:00:18]} 11. Be5 {[%emt 0:00:03]} Nhf6 {[%emt 0:00:05]} 12. Bg3 {[%emt 0:00:05]} Nh5 {[%emt 0:00:07]} 13. Qc2 {[%emt 0:00:11]} Nxg3 {[%emt 0:08:02]} 14. hxg3 {[%emt 0:00:02]} Bg7 {[%emt 0:00:20]} 15. O-O-O {[%emt 0:02:46]} Qe7 {[%emt 0:04:05]} 16. Kb1 {[%emt 0:01:49]} O-O-O {[%emt 0:05:44]} 17. Rc1 {[%emt 0:02:35]} Kb8 {[%emt 0:02:34]} 18. Na4 {[%emt 0:00:08]} Rc8 {[%emt 0:05:20]} 19. Qd2 $146 {[%emt 0:15:37]} ({Predecessor:} 19. Nd2 h5 20. Nb3 b6 21. a3 h4 22. gxh4 gxh4 23. Ba6 Rc7 24. Nc3 c5 25. Nb5 Rc6 26. Ka1 Ka8 27. Nc3 {1-0 Lalic,B (2406)-Quilter,T (2195) Southend Easter op 63rd 2019 (6)}) 19... Rc7 {[%emt 0:08:17]} 20. Rc2 {[%emt 0:07:48]} Rhc8 {[%emt 0:09:59]} 21. b4 {[%emt 0:01:49]} b6 {[%emt 0:01:33]} 22. Rhc1 {[%emt 0:10:55]} Qd6 {[%emt 0:01:04]} 23. Rb2 {[%emt 0:09:23]} Ka8 {[%emt 0:02:00]} 24. Ba6 {[%emt 0:07:01]} Bf5+ {[%emt 0:02:02]} 25. Ka1 {[%emt 0:00:06]} Rb8 {[%emt 0:01:53]} 26. Bd3 {[%emt 0:01:20]} Be6 {[%emt 0:00:59]} 27. Nc3 {[%emt 0:01:39]} b5 {[%emt 0:22:38]} 28. a4 {[%emt 0:00:05]} a6 {[%emt 0:05:11]} 29. Ra2 {[%emt 0:04:23]} Ra7 {[%emt 0:03:43]} 30. axb5 {[%emt 0:00:17]} cxb5 {[%emt 0:02:37]} 31. e4 {[%emt 0:02:06]} g4 {[%emt 0:02:45]} 32. exd5 {[%emt 0:00:31]} Bxd5 {[%emt 0:00:57]} 33. Nxd5 {[%emt 0:00:04]} Qxd5 {[%emt 0:00:50]} 34. Qf4 {[%emt 0:00:33]} Re8 {[%emt 0:04:12]} 35. Qxg4 $2 {[%emt 0:00:03]} (35. Re2 Rb8 36. Be4 (36. Qxg4 $18)) 35... Bf6 {[%emt 0:00:04]} (35... Bf8 {might work better.} 36. Rc8+ (36. Qf5 Qxf5 37. Bxf5 Bg7 $18) 36... Rxc8) 36. Rc8+ $18 {[%emt 0:01:03]} Rxc8 {[%emt 0:00:12]} 37. Be4 $1 {[%emt 0:00:01]} Qxe4 {[%emt 0:01:05]} (37... Bxd4+ $2 38. Nxd4 $18 (38. Kb1 Kb8 $18) (38. Kb1 Qxe4+ 39. Qxe4+ Rb7 $18)) 38. Qxe4+ {[%emt 0:00:02]} Kb8 {[%emt 0:00:06]} 39. Qf4+ {[%emt 0:00:33]} Rac7 {[%emt 0:00:27]} 40. Nd2 {[%emt 0:03:53]} (40. Qxh6 Rc1+ 41. Kb2 R8c2+ 42. Ka3 Rc3+ 43. Kb2 R3c2+ 44. Kb3 Rc3+ 45. Kb2 R3c2+ $11) (40. Rxa6 Kb7 41. Rxf6 Rc1+ $11) 40... Bg5 {[%emt 0:03:04]} 41. Qd6 {[%emt 0:30:06]} (41. Qxf7 Nc5 42. Qf5 Na4 $16) 41... Bxd2 {[%emt 0:30:34]} 42. Rxd2 {[%emt 0:00:23]} Ka7 {[%emt 0:01:44]} 43. Re2 {[%emt 0:00:19]} (43. Qxh6 Rc4 44. Qg5 R8c7 $18) 43... Rc1+ {[%emt 0:00:00] [#]} 44. Ka2 $1 {[%emt 0:00:00]} Nb6 {[%emt 0:00:00] [#]} 45. d5 $1 {[%emt 0:00:00]} (45. Qxh6 Nd5 46. Rd2 Nxb4+ 47. Kb2 R1c3 $16) (45. Re7+ Ka8 $18) 45... R8c7 {[%emt 0:00:00]} (45... Kb7 $142 46. Qf6 (46. Qxh6 Nxd5 47. Rd2 Nxb4+ 48. Kb2 R8c7 $14) 46... Nxd5 47. Qxf7+ (47. Qxh6 $2 Nc3+ 48. Kb2 Nxe2 $19) 47... Nc7 48. Qf3+ Rc6) 46. Qe5 {[%emt 0:00:00]} ({Worse is} 46. Qxh6 Nxd5 47. Rd2 Nxb4+ 48. Kb2 Nd5 $11) (46. Qd8 $142) 46... Rd7 $18 {[%emt 0:00:00]} 47. Rd2 {[%emt 0:00:00]} Nc4 {[%emt 0:00:00]} 48. Qe8 {[%emt 0:00:00]} Nb6 {[%emt 0:00:00]} 49. d6 {[%emt 0:00:00]} Rc8 {[%emt 0:00:39]} 50. Qe3 {[%emt 0:00:00]} Rcd8 {[%emt 0:01:30]} 51. g4 {[%emt 0:00:00]} ({Don't do} 51. Qxh6 Nc4 52. Rd5 Rxd6 53. Rxd6 Rxd6 $18) 51... Kb7 {[%emt 0:00:19]} 52. Qxh6 {[%emt 0:00:00]} Nc4 {[%emt 0:00:20]} 53. Rd1 {[%emt 0:00:00]} Rxd6 {[%emt 0:00:12]} 54. Rxd6 {[%emt 0:00:00]} Rxd6 {[%emt 0:00:06]} 55. Qf4 {[%emt 0:00:00]} f6 {[%emt 0:00:32]} (55... Rd2+ $142 56. Kb3 Rd3+ 57. Kc2 Rd7) 56. Qf5 $18 {[%emt 0:00:00]} Kb6 {[%emt 0:02:45]} 57. Qc5+ {[%emt 0:00:00]} Kb7 {[%emt 0:00:09]} 58. Kb3 {[%emt 0:00:00]} Nd2+ {[%emt 0:00:40]} 59. Kb2 {[%emt 0:00:00]} Nc4+ {[%emt 0:00:29]} 60. Kc3 {[%emt 0:00:00]} Rc6 {[%emt 0:00:27]} 61. Qe7+ {[%emt 0:00:00]} Kb6 {[%emt 0:00:20]} 62. Qd8+ {[%emt 0:02:01]} Kb7 {[%emt 0:00:06]} 63. f4 {[%emt 0:00:15]} Ne3+ {[%emt 0:01:26]} 64. Kb3 {[%emt 0:00:45]} Nxg2 {[%emt 0:00:21]} 65. Qd7+ {[%emt 0:01:01]} Kb6 {[%emt 0:00:10]} 66. g5 {[%emt 0:00:09]} Nxf4 {[%emt 0:00:37]} 67. gxf6 {[%emt 0:16:41]} Ng2 1-0

[Event "French Top 16-A 2024"]
[Site "Chartres"]
[Date "2024.06.04"]
[Round "6.14"]
[White "Montaigne, Adrien"]
[Black "Degraeve, Jean-Marc"]
[Result "0-1"]
[ECO "B32"]
[WhiteElo "2008"]
[BlackElo "2463"]
[Annotator "TA"]
[PlyCount "76"]
[EventDate "2024.06.01"]
[EventType "team-tourn"]
[EventCountry "FRA"]
[SourceTitle "playchess.com"]
[Source "ChessBase"]
[SourceQuality "1"]
[TimeControl "40/5400+30:1800+30"]

{[%evp 15,76,29,35,29,21,23,21,29,54,13,12,12,18,24,19,30,38,-55,-53,-135,-135,-299,-295,-302,376,-278,-277,-278,-292,-324,-315,-331,-324,-302,-290,-375,-385,-377,-379,-379,-356,-527,-516,-548,-543,-535,-529,-528,-509,-512,-497,-779,-751,-29981,-29983,-29978,-29979,-29994,-29995,-29995,-29996,-29997,-29998]} 1. e4 {[%emt 0:00:28]} c5 {[%emt 0:00:35]} 2. Nf3 {[%emt 0:00:09][%cal Bg1f3,Bf3d4,Bd4b5,Bb5a3,Ba3c2][%mdl 32]} Nc6 {[%emt 0:00:11]} 3. d4 {[%emt 0:00:08]} cxd4 {[%emt 0:00:06]} 4. Nxd4 {[%emt 0:00:04]} e5 {[%emt 0:00:24]} 5. Nb5 {[%emt 0:00:19]} d6 {[%emt 0:00:08]} 6. c4 {[%emt 0:01:05]} Be7 {[%emt 0:01:21]} 7. N1c3 {[%emt 0:01:39]} a6 {[%emt 0:00:09]} 8. Na3 {[%emt 0:00:21]} Nf6 {[%emt 0:00:55][%cal Bg8f6,Bf6d7,Bd7c5][%mdl 32]} 9. Bd3 {[%emt 0:03:36]} O-O {[%emt 0:01:25]} 10. O-O {[%emt 0:01:57]} Nd7 {[%emt 0:06:29]} 11. Nc2 {[%emt 0:02:41] The position is equal.} Bg5 {[%emt 0:00:22]} 12. Ne3 {[%emt 0:01:39]} Nc5 {[%emt 0:00:23]} 13. b3 {[%emt 0:06:31]} Nd4 {[%emt 0:02:27]} (13... Be6 {simplifies} 14. Bc2 g6 15. Ned5 Bxc1 16. Rxc1 Bxd5 17. Nxd5 Ne6) 14. Bb2 {[%emt 0:04:55]} Bxe3 {[%emt 0:09:22]} 15. fxe3 {[%emt 0:00:13]} Qg5 {[%emt 0:00:10]} 16. Bc1 {[%emt 0:12:21]} (16. Qd2 $1 $14) 16... Bh3 $1 $40 {[%emt 0:02:16][%mdl 128] Black mounts an attack.} 17. Rf2 {[%emt 0:00:35]} ({White should try} 17. Qd2 $1 $15 Nxd3 (17... Ndxb3 18. axb3 Nxd3 19. Ba3 $11) 18. exd4 Qxd2 19. Bxd2 exd4 20. Ne2) 17... Nxd3 $17 {[%emt 0:00:54]} 18. Qxd3 {[%emt 0:08:02] [#]} (18. exd4 $17 Nxf2 19. Bxg5 Nxd1 20. Rxd1) 18... Nf3+ $1 $19 {[%emt 0:00:04][%mdl 512]} 19. Kh1 {[%emt 0:00:57][%cal Oc1a3] [#] Ba3! is the strong threat.} Bxg2+ $1 {[%emt 0:00:03][%mdl 512]} 20. Rxg2 {[%emt 0:00:30] [#]} Qxg2+ {[%emt 0:00:03][%mdl 512]} 21. Kxg2 {[%emt 0:00:08]} Ne1+ {[%emt 0:00:04]} 22. Kf1 {[%emt 0:01:26]} Nxd3 {[%emt 0:00:07]} 23. Ba3 {[%emt 0:00:37]} Nc5 {[%emt 0:00:07][%cal Ob7b5]} 24. Rd1 {[%emt 0:01:01]} f5 {[%emt 0:01:10]} 25. Rxd6 {[%emt 0:02:47]} Nxe4 {[%emt 0:00:25]} 26. Nxe4 {[%emt 0:00:52]} fxe4+ {[%emt 0:00:08][%mdl 4096] Endgame. KRR-KRB} 27. Ke2 {[%emt 0:00:11]} Rf6 {[%emt 0:00:18] And now ...Raf8 would win.} 28. Rd7 {[%emt 0:00:36]} (28. Rd2 $142) 28... Rh6 {[%emt 0:00:23]} 29. Bd6 {[%emt 0:00:47]} Rxh2+ {[%emt 0:02:21]} 30. Kf1 {[%emt 0:00:25]} Re8 {[%emt 0:04:27]} 31. Rxb7 {[%emt 0:01:48]} h5 {[%emt 0:01:38]} 32. c5 {[%emt 0:00:30]} Rc2 {[%emt 0:00:09]} 33. b4 {[%emt 0:00:50]} (33. Kg1 $142) 33... h4 {[%emt 0:00:14][%cal Oe8e6] ( -> ...Re6!)} 34. a4 {[%emt 0:00:43]} h3 {[%emt 0:00:16] Black mates.} 35. Kg1 {[%emt 0:00:07]} Re6 {[%emt 0:01:26]} 36. Rb8+ {[%emt 0:01:37]} Kh7 {[%emt 0:00:06]} 37. Rf8 {[%emt 0:00:10]} Rg6+ {[%emt 0:00:07]} 38. Kh1 {[%emt 0:00:14]} Rgg2 {[%emt 0:00:05] Weighted Error Value: White=0.76/Black=0.02 (flawless) .  Loses game:     	White=1     	---        Missed win:     	White=1     	---        Mistake:       	White=4     	---        Inaccurate:     	White=2     	---        OK:         	White=7     	Black=15     Best:        	White=1     	Black=1      Strong:       	---       	Black=1      Brilliant:      	---       	Black=2} 0-1

[Event "French Top 16-A 2024"]
[Site "Chartres"]
[Date "2024.06.04"]
[Round "6.15"]
[White "Tregubov, Pavel V."]
[Black "Demuth, Adrien"]
[Result "1/2-1/2"]
[ECO "D58"]
[WhiteElo "2562"]
[BlackElo "2506"]
[Annotator "TA"]
[PlyCount "57"]
[EventDate "2024.06.01"]
[EventType "team-tourn"]
[EventCountry "FRA"]
[SourceTitle "playchess.com"]
[Source "ChessBase"]
[SourceQuality "1"]
[TimeControl "40/5400+30:1800+30"]

{[%evp 23,57,0,0,-6,-13,-14,-3,-11,-9,-23,-27,-23,-14,-14,-19,-17,-30,-18,-16,-31,0,0,0,0,0,0,0,0,0,0,0,0,0,0,0,0]} 1. d4 {[%emt 0:00:02]} Nf6 {[%emt 0:00:10]} 2. c4 {[%emt 0:00:11]} e6 {[%emt 0:00:18]} 3. Nf3 {[%emt 0:00:05]} d5 {[%emt 0:02:23]} 4. Nc3 {[%emt 0:00:09]} Be7 {[%emt 0:00:39]} 5. Bg5 {[%emt 0:02:08]} O-O {[%emt 0:00:19]} 6. e3 {[%emt 0:00:05]} h6 {[%emt 0:00:14]} 7. Bh4 {[%emt 0:00:07]} b6 {[%emt 0:00:25]} 8. Bxf6 {[%emt 0:01:42]} Bxf6 {[%emt 0:00:05]} 9. cxd5 {[%emt 0:00:06]} exd5 {[%emt 0:00:03]} 10. Rc1 {[%emt 0:01:41]} Bb7 {[%emt 0:06:18]} 11. b4 {[%emt 0:02:00]} c5 {[%emt 0:06:50]} 12. bxc5 {[%emt 0:05:01]} bxc5 {[%emt 0:00:14]} 13. Qb3 {[%emt 0:18:17]} Bc6 {[%emt 0:15:10]} 14. Bb5 {[%emt 0:03:13]} cxd4 {[%emt 0:06:37]} 15. exd4 {[%emt 0:09:45]} Re8+ {[%emt 0:06:41]} 16. Be2 {[%emt 0:15:59]} Nd7 {[%emt 0:02:09][%cal Bb8d7,Bd7f8,Bf8e6,Be6d4][%mdl 32]} 17. O-O {[%emt 0:01:20]} Qa5 {[%emt 0:05:54]} 18. Bd3 {[%emt 0:05:51]} Rab8 {[%emt 0:06:22]} 19. Qc2 {[%emt 0:00:11]} Nf8 {[%emt 0:06:25]} 20. Qd2 {[%emt 0:09:46]} Ne6 {[%emt 0:04:54]} 21. Rfd1 {[%emt 0:13:19][%cal Oc3e4]} Bxd4 {[%emt 0:13:52]} (21... Nxd4 $2 {is the wrong capture.} 22. Nxd4 Bxd4 23. Ne2 Bxf2+ (23... Qxd2 $2 24. Rxd2 Bxf2+ 25. Kxf2 $18) 24. Kxf2 Qb6+ 25. Kf1 $18) 22. Nxd4 {[%emt 0:05:49] The position is equal.} Nxd4 {[%emt 0:00:04]} 23. Bf1 $1 {[%emt 0:00:12]} Ne6 {[%emt 0:05:56]} ({Don't blunder} 23... Rb4 $2 24. a3 Qxa3 25. Ra1 $18) 24. Nxd5 {[%emt 0:00:09]} Qxd2 {[%emt 0:01:04]} 25. Rxd2 {[%emt 0:00:05]} Bb5 {[%emt 0:02:03]} 26. g3 {[%emt 0:01:49]} Bxf1 {[%emt 0:00:30]} 27. Kxf1 {[%emt 0:00:07]} Kf8 {[%emt 0:00:40]} 28. Nc7 {[%emt 0:01:09]} Re7 {[%emt 0:02:27]} 29. Nxe6+ {[%emt 0:01:46] Not much happened in this game.   Weighted Error Value: White=0.02 (flawless) /Black=0.04 (flawless) .  Inaccurate:     	---       	Black=1      OK:         	White=6     	Black=10     Best:        	White=1     	---        Strong:       	White=1     	---} 1/2-1/2

[Event "French Top 16-A 2024"]
[Site "Chartres"]
[Date "2024.06.04"]
[Round "6.15"]
[White "Goldsztejn, Gildas"]
[Black "Ricou, Guillaume"]
[Result "1-0"]
[ECO "C02"]
[WhiteElo "2412"]
[BlackElo "2004"]
[Annotator "RC"]
[PlyCount "41"]
[EventDate "2024.06.01"]
[EventType "team-tourn"]
[EventCountry "FRA"]
[SourceTitle "playchess.com"]
[Source "ChessBase"]
[SourceQuality "1"]
[TimeControl "40/5400+30:1800+30"]

1. e4 {[%emt 0:00:05]} e6 {[%emt 0:00:07]} 2. d4 {[%emt 0:00:07]} d5 {[%emt 0:00:25]} 3. e5 {[%emt 0:00:31]} c5 {[%emt 0:00:04]} 4. c3 {[%emt 0:00:05]} Qb6 {[%emt 0:00:13]} 5. Nf3 {[%emt 0:00:08]} Nc6 {[%emt 0:00:04]} 6. a3 {[%emt 0:00:57]} Nh6 {[%emt 0:00:17]} 7. Bd3 {[%emt 0:00:58]} cxd4 {[%emt 0:03:33]} 8. O-O {[%emt 0:00:15]} Bd7 {[%emt 0:06:33]} 9. b4 {[%emt 0:13:22]} Rc8 {[%emt 0:10:19]} 10. Bb2 {[%emt 0:02:55]} Be7 {[%emt 0:08:44]} 11. cxd4 {[%emt 0:01:53]} Nf5 {[%emt 0:00:35]} 12. Nbd2 {[%emt 0:04:42]} Ncxd4 {[%emt 0:06:30]} 13. Nxd4 {[%emt 0:00:49]} Nxd4 {[%emt 0:00:09]} 14. Qg4 {[%emt 0:00:25]} Nf5 {[%emt 0:04:13]} 15. Bxf5 {[%emt 0:01:03]} exf5 {[%emt 0:00:05]} 16. Qxg7 {[%emt 0:00:07]} Rf8 {[%emt 0:00:18]} 17. e6 {[%emt 0:19:03]} Bxe6 {[%emt 0:14:34]} 18. Nf3 {[%emt 0:01:22]} Rc2 {[%emt 0:09:29]} 19. Bd4 {[%emt 0:04:04]} Qc7 {[%emt 0:03:16]} 20. Qxh7 {[%emt 0:00:49]} b6 {[%emt 0:02:27]} 21. Bg7 {[%emt 0:05:04]} 1-0

[Event "French Top 16-A 2024"]
[Site "Chartres"]
[Date "2024.06.04"]
[Round "6.16"]
[White "Milliet, Sophie"]
[Black "Broly, Mathilde"]
[Result "0-1"]
[ECO "C50"]
[WhiteElo "2385"]
[BlackElo "2097"]
[Annotator "RC"]
[PlyCount "68"]
[EventDate "2024.06.01"]
[EventType "team-tourn"]
[EventCountry "FRA"]
[SourceTitle "playchess.com"]
[Source "ChessBase"]
[SourceQuality "1"]
[TimeControl "40/5400+30:1800+30"]

1. e4 {[%emt 0:00:07]} e5 {[%emt 0:00:16]} 2. Nf3 {[%emt 0:00:05]} Nc6 {[%emt 0:00:06]} 3. Bc4 {[%emt 0:00:03]} Bc5 {[%emt 0:00:35]} 4. d3 {[%emt 0:00:23]} Nf6 {[%emt 0:01:17]} 5. a4 {[%emt 0:00:17]} a6 {[%emt 0:06:50]} 6. O-O {[%emt 0:01:13]} O-O {[%emt 0:02:53]} 7. Be3 {[%emt 0:06:57]} Bxe3 {[%emt 0:09:16]} 8. fxe3 {[%emt 0:00:03]} d5 {[%emt 0:00:10]} 9. exd5 {[%emt 0:00:05]} Nxd5 {[%emt 0:00:07]} 10. Qe1 {[%emt 0:00:58]} Be6 {[%emt 0:02:34]} 11. Nbd2 {[%emt 0:00:57]} Ndb4 {[%emt 0:21:01]} 12. Rc1 {[%emt 0:02:57]} Bxc4 {[%emt 0:02:07]} 13. Nxc4 {[%emt 0:00:13]} e4 {[%emt 0:07:33]} 14. dxe4 {[%emt 0:03:29]} Qe7 {[%emt 0:00:32]} 15. Ncd2 {[%emt 0:11:00]} Rad8 {[%emt 0:03:39]} 16. Qf2 {[%emt 0:07:34]} Ne5 {[%emt 0:04:33]} 17. Nd4 {[%emt 0:01:37]} g6 {[%emt 0:02:04]} 18. Qg3 {[%emt 0:03:27]} Kh8 {[%emt 0:00:12]} 19. Rf2 {[%emt 0:06:40]} c5 {[%emt 0:03:01]} 20. N4f3 {[%emt 0:00:33]} Nxf3+ {[%emt 0:01:57]} 21. gxf3 {[%emt 0:07:23]} f5 {[%emt 0:01:25]} 22. e5 {[%emt 0:03:20]} f4 {[%emt 0:03:02]} 23. exf4 {[%emt 0:00:05]} Nd5 {[%emt 0:00:07]} 24. Qg5 {[%emt 0:21:21]} Qc7 {[%emt 0:00:28]} 25. Re1 {[%emt 0:00:41]} Nxf4 {[%emt 0:02:19]} 26. Qh6 {[%emt 0:00:19]} Rf5 {[%emt 0:07:26]} 27. Nc4 {[%emt 0:03:03]} Rg5+ {[%emt 0:02:45]} 28. Kf1 {[%emt 0:07:57]} Qe7 {[%emt 0:06:26]} 29. h4 {[%emt 0:05:54]} Rf5 {[%emt 0:00:11]} 30. Nd6 {[%emt 0:00:22]} Rxe5 {[%emt 0:02:26]} 31. Rxe5 {[%emt 0:00:51]} Qxe5 {[%emt 0:00:05]} 32. Nf7+ {[%emt 0:01:47]} Kg8 {[%emt 0:00:06]} 33. Rd2 {[%emt 0:02:21]} Kxf7 {[%emt 0:00:41]} 34. Qxh7+ {[%emt 0:02:11]} Kf6 {[%emt 0:00:09]} 0-1